fUST/lending_fUST_20251219
["ID","MTS","AMOUNT","RATE_DAILY","PERIOD"]
[399165660,1766130682010,-631.7335132,0.00056164,120]
[399165661,1766130682021,-1514.92,0.00056164,120]
[399165662,1766130682030,-375.5615334,0.00056192,60]
[399165663,1766130682039,-375.5615334,0.00056192,60]
[399165664,1766130682049,-151.44692879,0.00056274,30]
[399165665,1766130682060,-153.0,0.00056384,60]
[399165666,1766130682070,-153.0,0.00056384,60]
[399165667,1766130682079,-160.0,0.000564,120]
[399165668,1766130682089,-780.17,0.00056438,120]
[399165669,1766130682099,-500.0,0.00056438,7]
[399165670,1766130682109,-500.0,0.00056438,120]
[399165671,1766130682118,-1000.0,0.00056438,2]
[399165672,1766130682127,-527.64,0.00056438,120]
[399165673,1766130682136,-500.0,0.00056438,120]
[399165674,1766130682145,-808.56,0.00056438,120]
[399165675,1766130682154,-500.0,0.00056438,5]
[399165676,1766130682164,-500.0,0.00056438,120]
[399165677,1766130682174,-500.0,0.00056438,30]
[399165678,1766130682183,-339.36107841,0.00056438,120]
[399165679,1766130682192,-3828.03,0.00056438,120]
[399165680,1766130682202,-1000.0,0.00056438,2]
[399165681,1766130682212,-500.0,0.00056438,120]
[399165682,1766130682221,-500.0,0.00056438,120]
[399165683,1766130682230,-500.0,0.00056438,120]
[399165684,1766130682239,-1164.05,0.00056438,120]
[399165685,1766130682249,-500.0,0.00056438,2]
[399165686,1766130682259,-500.0,0.00056438,120]
[399165687,1766130682269,-500.0,0.00056438,120]
[399165688,1766130682279,-426.78489019,0.00056438,120]
[399165689,1766130682289,-500.0,0.00056438,120]
[399165690,1766130682300,-500.0,0.00056438,120]
[399165691,1766130682309,-570.91696903,0.00056438,120]
[399165692,1766130682319,-500.0,0.00056438,60]
[399165693,1766130682328,-538.52,0.00056438,120]
[399165694,1766130682338,-500.0,0.00056438,120]
[399165695,1766130682347,-500.0,0.00056438,120]
[399165696,1766130682481,-1789.97,0.00056438,120]
[399165697,1766130682491,-500.0,0.00056438,120]
[399165698,1766130682501,-512.97,0.00056438,120]
[399165699,1766130682511,-500.0,0.00056438,120]
[399165700,1766130682521,-500.0,0.00056438,120]
[399165701,1766130682530,-1954.53,0.00056438,120]
[399165702,1766130682541,-500.0,0.00056438,120]
[399165703,1766130682552,-500.0,0.00056438,120]
[399165704,1766130682561,-165.52749199,0.00056438,120]
[399165705,1766130682571,-1050.87,0.00056438,120]
[399165706,1766130682580,-3817.38,0.00056438,120]
[399165707,1766130682589,-500.0,0.00056438,120]
[399165708,1766130682599,-500.0,0.00056438,120]
[399165709,1766130682609,-500.0,0.00056438,120]
[399165710,1766130682618,-500.0,0.00056438,30]
[399165711,1766130682627,-500.0,0.00056438,30]
[399165712,1766130682637,-1315.23,0.00056438,120]
[399165713,1766130682650,-500.0,0.00056438,120]
[399165714,1766130682659,-604.3291816,0.00056438,120]
[399165715,1766130682669,-500.0,0.00056438,120]
[399165716,1766130682678,-500.0,0.00056438,120]
[399165717,1766130682687,-1071.88,0.00056438,120]
[399165718,1766130682698,-500.0,0.00056438,120]
[399165719,1766130682707,-500.0,0.00056438,120]
[399165720,1766130682717,-500.0,0.00056438,120]
[399165721,1766130682727,-500.0,0.00056438,120]
[399165722,1766130682736,-481.22690418,0.00056438,120]
[399165723,1766130682747,-500.0,0.00056438,120]
[399165724,1766130682756,-500.0,0.00056438,120]
[399165725,1766130682765,-545.17107929,0.00056438,120]
[399165726,1766130682774,-500.0,0.00056438,120]
[399165727,1766130682784,-500.0,0.00056438,120]
[399165728,1766130682795,-524.88,0.00056438,120]
[399165729,1766130682805,-500.0,0.00056438,120]
[399165730,1766130682814,-696.02,0.00056438,120]
[399165731,1766130682824,-1278.98,0.00056438,120]
[399165732,1766130682833,-848.2,0.00056438,120]
[399165733,1766130682842,-682.7,0.00056438,120]
[399165734,1766130682851,-500.0,0.00056438,120]
[399165735,1766130682860,-1176.57,0.00056438,120]
[399165736,1766130682870,-500.0,0.00056438,120]
[399165737,1766130682881,-500.0,0.00056438,120]
[399165738,1766130682891,-406.10583001,0.00056438,120]
[399165739,1766130682902,-500.0,0.00056438,120]
[399165740,1766130682911,-500.0,0.00056438,120]
[399165741,1766130682920,-500.0,0.00056438,120]
[399165742,1766130682929,-500.0,0.00056438,120]
[399165743,1766130682938,-500.0,0.00056438,120]
[399165744,1766130682947,-500.0,0.00056438,120]
[399165745,1766130682956,-500.0,0.00056438,120]
[399165746,1766130682966,-628.56,0.00056438,120]
[399165747,1766130682975,-500.0,0.00056438,120]
[399165748,1766130682984,-1384.97,0.00056438,120]
[399165749,1766130682994,-500.0,0.00056438,120]
[399165750,1766130683003,-1052.14,0.00056438,120]
[399165751,1766130683013,-500.0,0.00056438,120]
[399165752,1766130683023,-500.0,0.00056438,120]
[399165753,1766130683032,-626.76679209,0.00056438,120]
[399165754,1766130683042,-500.0,0.00056438,120]
[399165755,1766130683051,-500.0,0.00056438,120]
[399165756,1766130683061,-1084.45,0.00056438,120]
[399165757,1766130683071,-500.0,0.00056438,120]
[399165758,1766130683080,-898.43,0.00056438,120]
[399165759,1766130683089,-500.0,0.00056438,120]
[399165760,1766130683099,-500.0,0.00056438,30]
[399165761,1766130683108,-841.83,0.00056438,120]
[399165762,1766130683118,-500.0,0.00056438,120]
[399165763,1766130683128,-500.0,0.00056438,120]
[399165764,1766130683137,-500.0,0.00056438,120]
[399165765,1766130683147,-500.0,0.00056438,120]
[399165766,1766130683157,-1049.58,0.00056438,120]
[399165767,1766130683166,-500.0,0.00056438,120]
[399165768,1766130683175,-500.0,0.00056438,120]
[399165769,1766130683185,-270.92637633,0.00056438,120]
[399165770,1766130683194,-5832.94,0.00056438,120]
[399165771,1766130683204,-500.0,0.00056438,120]
[399165772,1766130683213,-500.0,0.00056438,120]
[399165773,1766130683223,-1123.95,0.00056438,120]
[399165774,1766130683233,-500.0,0.00056438,120]
[399165775,1766130683243,-500.0,0.00056438,120]
[399165776,1766130683252,-500.0,0.00056438,120]
[399165777,1766130683261,-500.0,0.00056438,120]
[399165778,1766130683271,-500.0,0.00056438,120]
[399165779,1766130683280,-297.32,0.00056438,120]
[399165780,1766130683289,-500.0,0.00056438,120]
[399165781,1766130683298,-799.69,0.00056438,21]
[399165782,1766130683308,-565.42,0.00056438,120]
[399165783,1766130683318,-500.0,0.00056438,120]
[399165784,1766130683327,-500.0,0.00056438,120]
[399165785,1766130683337,-500.0,0.00056438,120]
[399165786,1766130683346,-1745.65,0.00056438,120]
[399165787,1766130683356,-1000.0,0.00056438,120]
[399165788,1766130683365,-833.05,0.00056438,120]
[399165789,1766130683374,-501.72,0.00056438,120]
[399165790,1766130683383,-500.0,0.00056438,120]
[399165791,1766130683392,-507.95511348,0.00056438,120]
[399165792,1766130683401,-500.0,0.00056438,120]
[399165793,1766130683411,-449.7939444,0.00056438,120]
[399165794,1766130683420,-861.29,0.00056438,120]
[399165795,1766130683429,-500.0,0.00056438,120]
[399165796,1766130683439,-500.0,0.00056438,120]
[399165797,1766130683448,-500.0,0.00056438,120]
[399165798,1766130683458,-4150.56,0.00056438,120]
[399165799,1766130683467,-500.0,0.00056438,120]
[399165800,1766130683476,-500.0,0.00056438,120]
[399165801,1766130683485,-500.0,0.00056438,120]
[399165802,1766130683494,-500.0,0.00056438,120]
[399165803,1766130683504,-1545.59,0.00056438,120]
[399165804,1766130683513,-601.18,0.00056438,120]
[399165805,1766130683522,-405.28013955,0.00056438,120]
[399165806,1766130683532,-500.0,0.00056438,120]
[399165807,1766130683541,-500.0,0.00056438,120]
[399165808,1766130683550,-500.0,0.00056438,120]
[399165809,1766130683559,-500.0,0.00056438,120]
[399165810,1766130683568,-500.0,0.00056438,120]
[399165811,1766130683577,-3273.78,0.00056438,120]
[399165812,1766130683586,-2163.92,0.00056438,120]
[399165813,1766130683595,-500.0,0.00056438,120]
[399165814,1766130683604,-615.54,0.00056438,120]
[399165815,1766130683614,-2441.66,0.00056438,3]
[399165816,1766130683623,-500.0,0.00056438,120]
[399165817,1766130683632,-500.0,0.00056438,120]
[399165818,1766130683642,-535.83,0.00056438,120]
[399165819,1766130683653,-500.0,0.00056438,120]
[399165820,1766130683662,-500.0,0.00056438,120]
[399165821,1766130683672,-500.0,0.00056438,120]
[399165822,1766130683681,-491.25342279,0.00056438,120]
[399165823,1766130683690,-970.05,0.00056438,120]
[399165824,1766130683706,-1307.75,0.00056438,120]
[399165825,1766130683722,-500.0,0.00056438,120]
[399165826,1766130683735,-500.0,0.00056438,120]
[399165827,1766130683748,-529.54,0.00056438,120]
[399165828,1766130683763,-500.0,0.00056438,120]
[399165829,1766130683777,-500.0,0.00056438,120]
[399165830,1766130683792,-500.0,0.00056438,120]
[399165831,1766130683806,-619.49,0.00056438,120]
[399165832,1766130683821,-500.0,0.00056438,120]
[399165833,1766130683835,-2004.58,0.00056438,120]
[399165834,1766130683849,-500.0,0.00056438,120]
[399165835,1766130683863,-555.38,0.00056438,120]
[399165836,1766130683878,-251.50141885,0.00056438,120]
[399165837,1766130683892,-500.0,0.00056438,120]
[399165838,1766130683902,-500.0,0.00056438,120]
[399165839,1766130683915,-570.98,0.00056438,120]
[399165840,1766130683929,-500.0,0.00056438,120]
[399165841,1766130683944,-617.64,0.00056438,120]
[399165842,1766130683958,-500.0,0.00056438,120]
[399165843,1766130683973,-708.43,0.00056438,120]
[399165844,1766130683989,-355.89263456,0.00056438,120]
[399165845,1766130684000,-756.93,0.00056438,120]
[399165846,1766130684010,-1547.5,0.00056438,120]
[399165847,1766130684024,-564.73,0.00056438,120]
[399165848,1766130684042,-788.22,0.00056438,120]
[399165849,1766130684056,-500.0,0.00056438,120]
[399165850,1766130684070,-500.0,0.00056438,120]
[399165851,1766130684084,-500.0,0.00056438,120]
[399165852,1766130684097,-500.0,0.00056438,120]
[399165853,1766130684110,-500.0,0.00056438,120]
[399165854,1766130684122,-1289.84,0.00056438,120]
[399165855,1766130684134,-500.0,0.00056438,120]
[399165856,1766130684147,-156.09174027,0.00056451,120]
[399165857,1766130684160,-302.92998342,0.00056473,120]
[399165858,1766130684172,-151.44692879,0.00056548,30]
[399165859,1766130684185,-375.5615334,0.00056575,60]
[399165860,1766130684197,-375.5615334,0.00056575,60]
[399165861,1766130684210,-900.0,0.00056704,120]
[399165862,1766130684222,-780.17,0.00056712,120]
[399165863,1766130684235,-500.0,0.00056712,7]
[399165864,1766130684247,-500.0,0.00056712,120]
[399165865,1766130684260,-1000.0,0.00056712,2]
[399165866,1766130684273,-527.64,0.00056712,120]
[399165867,1766130684284,-500.0,0.00056712,120]
[399165868,1766130684297,-808.56,0.00056712,120]
[399165869,1766130684308,-500.0,0.00056712,5]
[399165870,1766130684320,-500.0,0.00056712,120]
[399165871,1766130684332,-500.0,0.00056712,30]
[399165872,1766130684343,-3828.03,0.00056712,120]
[399165873,1766130684355,-1000.0,0.00056712,2]
[399165874,1766130684367,-500.0,0.00056712,120]
[399165875,1766130684378,-500.0,0.00056712,120]
[399165876,1766130684388,-500.0,0.00056712,120]
[399165877,1766130684399,-1164.05,0.00056712,120]
[399165878,1766130684410,-500.0,0.00056712,2]
[399165879,1766130684422,-500.0,0.00056712,120]
[399165880,1766130684433,-175.12748701,0.00056712,120]
[399165881,1766130684444,-500.0,0.00056712,120]
[399165882,1766130684456,-500.0,0.00056712,120]
[399165883,1766130684468,-500.0,0.00056712,60]
[399165884,1766130684479,-538.52,0.00056712,120]
[399165885,1766130684491,-500.0,0.00056712,120]
[399165886,1766130684502,-500.0,0.00056712,120]
[399165887,1766130684514,-1789.97,0.00056712,120]
[399165888,1766130684525,-208.62778216,0.00056712,120]
[399165889,1766130684536,-512.97,0.00056712,120]
[399165890,1766130684547,-500.0,0.00056712,120]
[399165891,1766130684558,-500.0,0.00056712,120]
[399165892,1766130684569,-1954.53,0.00056712,120]
[399165893,1766130684580,-500.0,0.00056712,120]
[399165894,1766130684592,-500.0,0.00056712,120]
[399165895,1766130684603,-1050.87,0.00056712,120]
[399165896,1766130684615,-3817.38,0.00056712,120]
[399165897,1766130684626,-500.0,0.00056712,120]
[399165898,1766130684637,-500.0,0.00056712,120]
[399165899,1766130684650,-644.61882257,0.00056712,120]
[399165900,1766130684662,-418.43834227,0.00056712,30]
[399165901,1766130684673,-500.0,0.00056712,30]
[399165902,1766130684683,-1315.23,0.00056712,120]
[399165903,1766130684696,-500.0,0.00056712,120]
[399165904,1766130684707,-500.0,0.00056712,120]
[399165905,1766130684720,-500.0,0.00056712,120]
[399165906,1766130684731,-1071.88,0.00056712,120]
[399165907,1766130684742,-494.08565663,0.00056712,120]
[399165908,1766130684754,-500.0,0.00056712,120]
[399165909,1766130684765,-406.6992391,0.00056712,120]
[399165910,1766130684777,-500.0,0.00056712,120]
[399165911,1766130684788,-500.0,0.00056712,120]
[399165912,1766130684799,-500.0,0.00056712,120]
[399165913,1766130684810,-500.0,0.00056712,120]
[399165914,1766130684822,-500.0,0.00056712,120]
[399165915,1766130684833,-524.88,0.00056712,120]
[399165916,1766130684844,-500.0,0.00056712,120]
[399165917,1766130684855,-696.02,0.00056712,120]
[399165918,1766130684866,-1278.98,0.00056712,120]
[399165919,1766130684877,-848.2,0.00056712,120]
[399165920,1766130684888,-682.7,0.00056712,120]
[399165921,1766130684899,-500.0,0.00056712,120]
[399165922,1766130684910,-1176.57,0.00056712,120]
[399165923,1766130684921,-500.0,0.00056712,120]
[399165924,1766130684932,-173.22971691,0.00056712,120]
[399165925,1766130684942,-500.0,0.00056712,120]
[399165926,1766130684953,-553.29154101,0.00056712,120]
[399165927,1766130684965,-500.0,0.00056712,120]
[399165928,1766130684976,-500.0,0.00056712,120]
[399165929,1766130684987,-500.0,0.00056712,120]
[399165930,1766130684998,-500.0,0.00056712,120]
[399165931,1766130685009,-628.56,0.00056712,120]
[399165932,1766130685020,-500.0,0.00056712,120]
[399165933,1766130685031,-1384.97,0.00056712,120]
[399165934,1766130685042,-500.0,0.00056712,120]
[399165935,1766130685054,-1052.14,0.00056712,120]
[399165936,1766130685065,-500.0,0.00056712,120]
[399165937,1766130685075,-222.93163321,0.00056712,120]
[399165938,1766130685087,-500.0,0.00056712,120]
[399165939,1766130685098,-500.0,0.00056712,120]
[399165940,1766130685109,-1084.45,0.00056712,120]
[399165941,1766130685121,-156.29400355,0.00056712,120]
[399165942,1766130685133,-898.43,0.00056712,120]
[399165943,1766130685144,-500.0,0.00056712,120]
[399165944,1766130685155,-500.0,0.00056712,30]
[399165945,1766130685166,-841.83,0.00056712,120]
[399165946,1766130685178,-500.0,0.00056712,120]
[399165947,1766130685188,-500.0,0.00056712,120]
[399165948,1766130685201,-500.0,0.00056712,120]
[399165949,1766130685212,-500.0,0.00056712,120]
[399165950,1766130685403,-1049.58,0.00056712,120]
[399165951,1766130685430,-500.0,0.00056712,120]
[399165952,1766130685439,-500.0,0.00056712,120]
[399165953,1766130685449,-5832.94,0.00056712,120]
[399165954,1766130685458,-500.0,0.00056712,120]
[399165955,1766130685468,-500.0,0.00056712,120]
[399165956,1766130685478,-1123.95,0.00056712,120]
[399165957,1766130685487,-500.0,0.00056712,120]
[399165958,1766130685497,-500.0,0.00056712,120]
[399165959,1766130685506,-500.0,0.00056712,120]
[399165960,1766130685515,-500.0,0.00056712,120]
[399165961,1766130685524,-500.0,0.00056712,120]
[399165962,1766130685534,-500.0,0.00056712,120]
[399165963,1766130685543,-799.69,0.00056712,21]
[399165964,1766130685552,-565.42,0.00056712,120]
[399165965,1766130685562,-500.0,0.00056712,120]
[399165966,1766130685571,-181.66,0.00056712,120]
[399165967,1766130685581,-500.0,0.00056712,120]
[399165968,1766130685590,-1745.65,0.00056712,120]
[399165969,1766130685600,-1000.0,0.00056712,120]
[399165970,1766130685609,-833.05,0.00056712,120]
[399165971,1766130685618,-501.72,0.00056712,120]
[399165972,1766130685627,-500.0,0.00056712,120]
[399165973,1766130685636,-500.0,0.00056712,120]
[399165974,1766130685647,-861.29,0.00056712,120]
[399165975,1766130685656,-500.0,0.00056712,120]
[399165976,1766130685666,-500.0,0.00056712,120]
[399165977,1766130685675,-500.0,0.00056712,120]
[399165978,1766130685685,-4150.56,0.00056712,120]
[399165979,1766130685694,-500.0,0.00056712,120]
[399165980,1766130685703,-500.0,0.00056712,120]
[399165981,1766130685712,-500.0,0.00056712,120]
[399165982,1766130685722,-500.0,0.00056712,120]
[399165983,1766130685732,-1545.59,0.00056712,120]
[399165984,1766130685742,-601.18,0.00056712,120]
[399165985,1766130685751,-500.0,0.00056712,120]
[399165986,1766130685760,-173.44245084,0.00056712,120]
[399165987,1766130685770,-484.05674236,0.00056712,120]
[399165988,1766130685780,-500.0,0.00056712,120]
[399165989,1766130685789,-500.0,0.00056712,120]
[399165990,1766130685799,-3273.78,0.00056712,120]
[399165991,1766130685808,-2163.92,0.00056712,120]
[399165992,1766130685818,-500.0,0.00056712,120]
[399165993,1766130685827,-615.54,0.00056712,120]
[399165994,1766130685836,-2441.66,0.00056712,3]
[399165995,1766130685846,-500.0,0.00056712,120]
[399165996,1766130685855,-500.0,0.00056712,120]
[399165997,1766130685865,-535.83,0.00056712,120]
[399165998,1766130685874,-446.91506051,0.00056712,120]
[399165999,1766130685882,-500.0,0.00056712,120]
[399166000,1766130685891,-337.98433949,0.00056712,120]
[399166001,1766130685900,-970.05,0.00056712,120]
[399166002,1766130685910,-1307.75,0.00056712,120]
[399166003,1766130685919,-500.0,0.00056712,120]
[399166004,1766130685929,-500.0,0.00056712,120]
[399166005,1766130685938,-529.54,0.00056712,120]
[399166006,1766130685947,-500.0,0.00056712,120]
[399166007,1766130685957,-500.0,0.00056712,120]
[399166008,1766130685966,-500.0,0.00056712,120]
[399166009,1766130685976,-619.49,0.00056712,120]
[399166010,1766130685984,-500.0,0.00056712,120]
[399166011,1766130685994,-2004.58,0.00056712,120]
[399166012,1766130686003,-500.0,0.00056712,120]
[399166013,1766130686013,-555.38,0.00056712,120]
[399166014,1766130686023,-500.0,0.00056712,120]
[399166015,1766130686032,-570.98,0.00056712,120]
[399166016,1766130686042,-617.64,0.00056712,120]
[399166017,1766130686051,-500.0,0.00056712,120]
[399166018,1766130686060,-500.0,0.00056712,120]
[399166019,1766130686070,-708.43,0.00056712,120]
[399166020,1766130686079,-756.93,0.00056712,120]
[399166021,1766130686088,-1547.5,0.00056712,120]
[399166022,1766130686098,-564.73,0.00056712,120]
[399166023,1766130686107,-788.22,0.00056712,120]
[399166024,1766130686117,-500.0,0.00056712,120]
[399166025,1766130686126,-500.0,0.00056712,120]
[399166026,1766130686135,-500.0,0.00056712,120]
[399166027,1766130686144,-500.0,0.00056712,120]
[399166028,1766130686153,-500.0,0.00056712,120]
[399166029,1766130686163,-1289.84,0.00056712,120]
[399166030,1766130686172,-310.2328058,0.00056712,60]
[399166031,1766130686181,-153.0,0.00056712,60]
[399166032,1766130686191,-187.7528671,0.00056712,60]
[399166033,1766130686200,-385.4837854,0.00056712,60]
[399166034,1766130686210,-598.1622726,0.00056712,60]
[399166035,1766130686220,-302.5216569,0.00056712,60]
[399166036,1766130686230,-302.5216569,0.00056712,60]
[399166037,1766130686240,-183.6436344,0.00056712,60]
[399166038,1766130686249,-598.1622726,0.00056712,60]
[399166039,1766130686259,-183.6436344,0.00056712,60]
[399166040,1766130686268,-302.5216569,0.00056712,60]
[399166041,1766130686279,-598.1622726,0.00056712,60]
[399166042,1766130686288,-183.6436344,0.00056712,60]
[399166043,1766130686297,-302.5216569,0.00056712,60]
[399166044,1766130686306,-598.1622726,0.00056712,60]
[399166045,1766130686315,-200.0,0.00056758,120]
[399166046,1766130686324,-151.44692879,0.00056795,30]
[399166047,1766130686334,-6849.1713682,0.00056795,120]
[399166048,1766130686343,-53397.50664174,0.000569,120]
[399166049,1766130686352,-152.24,0.000569,120]
[399166050,1766130686361,-302.92,0.000569,120]
[399166051,1766130686371,-156.09,0.000569,120]
[399166052,1766130686380,-780.17,0.00056986,120]
[399166053,1766130686389,-500.0,0.00056986,7]
[399166054,1766130686399,-500.0,0.00056986,120]
[399166055,1766130686407,-1000.0,0.00056986,2]
[399166056,1766130686416,-527.64,0.00056986,120]
[399166057,1766130686425,-500.0,0.00056986,120]
[399166058,1766130686434,-808.56,0.00056986,120]
[399166059,1766130686443,-500.0,0.00056986,5]
[399166060,1766130686453,-500.0,0.00056986,120]
[399166061,1766130686464,-500.0,0.00056986,30]
[399166062,1766130686474,-3828.03,0.00056986,120]
[399166063,1766130686483,-1000.0,0.00056986,2]
[399166064,1766130686492,-500.0,0.00056986,120]
[399166065,1766130686501,-500.0,0.00056986,120]
[399166066,1766130686511,-500.0,0.00056986,120]
[399166067,1766130686524,-1164.05,0.00056986,120]
[399166068,1766130686533,-500.0,0.00056986,2]
[399166069,1766130686543,-500.0,0.00056986,120]
[399166070,1766130686552,-316.01,0.00056986,120]
[399166071,1766130686561,-500.0,0.00056986,120]
[399166072,1766130686570,-500.0,0.00056986,60]
[399166073,1766130686579,-538.52,0.00056986,120]
[399166074,1766130686587,-500.0,0.00056986,120]
[399166075,1766130686596,-500.0,0.00056986,120]
[399166076,1766130686605,-1789.97,0.00056986,120]
[399166077,1766130686615,-512.97,0.00056986,120]
[399166078,1766130686624,-500.0,0.00056986,120]
[399166079,1766130686633,-500.0,0.00056986,120]
[399166080,1766130686643,-1954.53,0.00056986,120]
[399166081,1766130686655,-500.0,0.00056986,120]
[399166082,1766130686665,-500.0,0.00056986,120]
[399166083,1766130686674,-1050.87,0.00056986,120]
[399166084,1766130686683,-3817.38,0.00056986,120]
[399166085,1766130686693,-500.0,0.00056986,120]
[399166086,1766130686702,-500.0,0.00056986,120]
[399166087,1766130686712,-500.0,0.00056986,30]
[399166088,1766130686723,-1315.23,0.00056986,120]
[399166089,1766130686732,-500.0,0.00056986,120]
[399166090,1766130686742,-500.0,0.00056986,120]
[399166091,1766130686751,-500.0,0.00056986,120]
[399166092,1766130686760,-1071.88,0.00056986,120]
[399166093,1766130686770,-500.0,0.00056986,120]
[399166094,1766130686779,-500.0,0.00056986,120]
[399166095,1766130686789,-500.0,0.00056986,120]
[399166096,1766130686798,-500.0,0.00056986,120]
[399166097,1766130686806,-500.0,0.00056986,120]
[399166098,1766130686816,-500.0,0.00056986,120]
[399166099,1766130686825,-524.88,0.00056986,120]
[399166100,1766130686834,-500.0,0.00056986,120]
[399166101,1766130686843,-696.02,0.00056986,120]
[399166102,1766130686852,-1278.98,0.00056986,120]
[399166103,1766130686861,-848.2,0.00056986,120]
[399166104,1766130686871,-682.7,0.00056986,120]
[399166105,1766130686880,-322.73169512,0.00056986,120]
[399166106,1766130686889,-1176.57,0.00056986,120]
[399166107,1766130686898,-500.0,0.00056986,120]
[399166108,1766130686908,-500.0,0.00056986,120]
[399166109,1766130686917,-500.0,0.00056986,120]
[399166110,1766130686926,-500.0,0.00056986,120]
[399166111,1766130686936,-500.0,0.00056986,120]
[399166112,1766130686945,-500.0,0.00056986,120]
[399166113,1766130686954,-628.56,0.00056986,120]
[399166114,1766130686964,-500.0,0.00056986,120]
[399166115,1766130686973,-1384.97,0.00056986,120]
[399166116,1766130686983,-500.0,0.00056986,120]
[399166117,1766130686992,-1052.14,0.00056986,120]
[399166118,1766130687001,-500.0,0.00056986,120]
[399166119,1766130687010,-500.0,0.00056986,120]
[399166120,1766130687020,-500.0,0.00056986,120]
[399166121,1766130687030,-1084.45,0.00056986,120]
[399166122,1766130687039,-898.43,0.00056986,120]
[399166123,1766130687049,-500.0,0.00056986,120]
[399166124,1766130687058,-500.0,0.00056986,30]
[399166125,1766130687068,-841.83,0.00056986,120]
[399166126,1766130687078,-500.0,0.00056986,120]
[399166127,1766130687087,-500.0,0.00056986,120]
[399166128,1766130687097,-500.0,0.00056986,120]
[399166129,1766130687106,-500.0,0.00056986,120]
[399166130,1766130687115,-1049.58,0.00056986,120]
[399166131,1766130687124,-500.0,0.00056986,120]
[399166132,1766130687134,-500.0,0.00056986,120]
[399166133,1766130687144,-5832.94,0.00056986,120]
[399166134,1766130687153,-500.0,0.00056986,120]
[399166135,1766130687163,-500.0,0.00056986,120]
[399166136,1766130687172,-1123.95,0.00056986,120]
[399166137,1766130687181,-500.0,0.00056986,120]
[399166138,1766130687190,-500.0,0.00056986,120]
[399166139,1766130687200,-646.85664089,0.00056986,120]
[399166140,1766130687209,-500.0,0.00056986,120]
[399166141,1766130687219,-500.0,0.00056986,120]
[399166142,1766130687228,-799.69,0.00056986,21]
[399166143,1766130687237,-565.42,0.00056986,120]
[399166144,1766130687247,-500.0,0.00056986,120]
[399166145,1766130687256,-500.0,0.00056986,120]
[399166146,1766130687266,-1745.65,0.00056986,120]
[399166147,1766130687281,-1000.0,0.00056986,120]
[399166148,1766130687290,-833.05,0.00056986,120]
[399166149,1766130687299,-501.72,0.00056986,120]
[399166150,1766130687308,-500.0,0.00056986,120]
[399166151,1766130687318,-500.0,0.00056986,120]
[399166152,1766130687327,-861.29,0.00056986,120]
[399166153,1766130687336,-615.99443004,0.00056986,120]
[399166154,1766130687346,-500.0,0.00056986,120]
[399166155,1766130687355,-500.0,0.00056986,120]
[399166156,1766130687364,-4150.56,0.00056986,120]
[399166157,1766130687374,-500.0,0.00056986,120]
[399166158,1766130687383,-500.0,0.00056986,120]
[399166159,1766130687392,-367.84602449,0.00056986,120]